bitfinex/quotes_ETHUSD_20240709
["timestamp","ask_amount","ask_price","bid_price","bid_amount"]
[1720510599281,2.2736,3072.6,3070.7,3.2565]
[1720510599282,1.3729417,3072.3,3070.7,3.2565]
[1720510599513,3.40141565,3072.2,3070.8,3.25647]
[1720510599697,1.12781565,3072.1,3070.5,5.67997]
[1720510599909,1.7,3071.6,3070.6,0.567997]
[1720510600132,3.62191565,3071.5,3070.5,3.25677]
[1720510600294,2.56915892,3071.5,3070.5,3.25677]
[1720510600494,0.07505892,3071.5,3070.6,0.39079649]
[1720510600710,0.07505892,3071.5,3070.8,3.25638]
[1720510600893,0.07505892,3071.5,3070.9,0.06511253]
[1720510601079,0.07477308,3071.4,3070.9,3.32147253]
[1720510601486,7.36,3071.8,3070.9,3.32147253]
[1720510601487,7.36,3071.8,3070.9,3.32146253]
[1720510601707,0.07476926,3071.3,3071.0,0.65778525]
[1720510601910,0.07476926,3071.3,3070.9,3.25635]
[1720510602121,7.36,3071.8,3070.9,3.25635]
[1720510602122,0.07476545,3071.2,3070.9,3.25635]
[1720510602323,7.36,3071.8,3070.7,3.25653]
[1720510602525,0.07476163,3071.1,3070.8,6.25647]
[1720510602821,9.06,3071.8,3071.0,3.25624]
[1720510602822,7.36,3071.8,3071.0,3.25624]
[1720510603181,0.07476438,3071.7,3070.9,0.7120176]
[1720510603716,0.07476438,3071.7,3070.8,6.25637]
[1720510604206,0.07476057,3071.6,3070.8,6.25637]
[1720510604416,2.4141,3072.0,3070.8,6.25637]
[1720510604417,2.4141,3072.0,3070.8,3.06511254]
[1720510604715,2.4141,3072.0,3070.9,6.25635]
[1720510604882,0.07446989,3071.9,3071.0,3.25625]
[1720510605083,0.07446989,3071.9,3071.1,0.69073266]
[1720510605283,0.07446989,3071.9,3071.1,3.94687266]
[1720510605583,0.07446989,3071.9,3071.2,8.74503698]
[1720510605779,2.2894,3072.5,3071.4,3.25575]
[1720510606016,0.07210308,3071.8,3071.5,0.06509944]
[1720510606220,2.2894,3072.5,3071.5,0.06509944]
[1720510606391,2.2894,3072.5,3071.5,3.32081944]
[1720510606608,0.07208595,3072.4,3071.5,3.32081944]
[1720510606789,2.2894,3072.5,3071.6,0.33208194]
[1720510606992,0.0720719,3072.3,3071.7,0.06509854]
[1720510607307,2.2894,3072.5,3071.7,0.06509854]
[1720510607515,2.2894,3072.5,3071.6,0.33208194]
[1720510607717,0.07208185,3072.4,3071.3,3.9370662]
[1720510608193,3.07208185,3072.4,3070.9,3.25634]
[1720510608394,1.12810363,3072.3,3070.5,3.25678]
[1720510608596,1.12810363,3072.3,3070.6,0.557288]
[1720510608597,4.85568337,3072.2,3070.6,0.557288]
[1720510608826,1.12817848,3072.1,3070.7,3.2565]
[1720510609123,1.12817848,3072.1,3070.4,5.57298]
[1720510609124,1.49377939,3072.0,3070.4,5.57298]
[1720510609340,2.4111,3071.8,3070.2,3.2571]
[1720510609628,2.4111,3071.4,3070.0,3.25731]
[1720510609786,2.4111,3071.4,3069.8,0.325755]
[1720510609983,0.54030992,3071.3,3069.9,0.3583325]
[1720510610188,1.12856669,3071.2,3070.0,3.25731]
[1720510610425,0.07195001,3071.2,3070.0,3.25731]
[1720510610725,0.07195001,3071.2,3069.9,0.3583325]
[1720510611022,0.07195001,3071.2,3069.8,0.325755]
[1720510611924,9.11997106,3071.1,3069.9,0.06513363]
[1720510612125,3.07179357,3071.0,3069.5,0.06514193]
[1720510612325,3.07179357,3071.0,3069.4,3.25788]
[1720510612685,0.55,3070.9,3069.5,0.06514192]
[1720510612960,2.62258458,3070.8,3069.5,0.39744411]
[1720510613119,5.4358,3070.7,3069.5,0.06514197]
[1720510613471,2.34276806,3070.6,3069.6,0.06514599]
[1720510613770,6.12062487,3070.6,3069.6,0.06514599]
[1720510614225,6.12062487,3070.6,3069.4,3.25796]
[1720510614226,2.271,3070.2,3068.7,0.06515404]
[1720510614431,3.84962487,3070.6,3069.0,3.25837]
[1720510614746,3.77785681,3070.6,3069.3,3.25805]
[1720510614931,2.44524443,3070.5,3069.3,3.32311506]
[1720510615248,2.44524443,3070.5,3069.2,0.01]
[1720510615249,5.44524443,3070.5,3069.2,0.01]
[1720510615560,2.44524443,3070.5,3069.2,0.01]
[1720510615920,2.44524443,3070.5,3069.2,0.07514894]
[1720510616151,0.24452444,3070.4,3069.2,0.01]
[1720510616456,2.4639,3070.2,3069.2,0.01]
[1720510616629,9.6939,3070.2,3069.2,0.01]
[1720510616819,0.62104865,3070.1,3069.2,0.01]
[1720510617142,3.62104865,3070.1,3069.2,0.01]
[1720510618350,1.12908303,3070.0,3069.2,0.01]
[1720510618518,0.47501317,3069.9,3069.2,0.01]
[1720510618718,0.07099424,3069.8,3069.2,0.01]
[1720510619166,3.0,3070.1,3069.2,0.01]
[1720510619375,0.07091961,3069.7,3069.2,0.01]
[1720510619575,3.0,3070.1,3069.2,0.01]
[1720510619731,0.07091579,3069.6,3069.2,0.01]
[1720510620075,0.55,3070.0,3069.2,0.01]
[1720510620260,0.07092107,3069.5,3069.2,0.01]
[1720510620568,0.07091429,3069.4,3069.2,0.01]
[1720510620780,0.55,3070.0,3069.2,0.01]
[1720510620979,0.07098229,3069.3,3069.2,0.01]
[1720510621147,1.410629,3070.0,3069.2,0.01]
[1720510621351,0.07098229,3069.3,3069.2,0.01]
[1720510621552,2.4525,3070.4,3069.2,0.01]
[1720510621878,0.07098229,3069.3,3069.2,0.01]
[1720510622082,4.2538,3069.7,3069.2,0.01]
[1720510622531,0.07088796,3069.6,3069.2,0.01]
[1720510622735,0.4324688,3069.5,3069.2,0.01]
[1720510623039,0.50335294,3069.5,3069.2,0.01]
[1720510623545,0.07088414,3069.5,3069.2,0.01]
[1720510623747,2.2948,3069.7,3069.2,0.01]
[1720510623954,0.07087623,3069.4,3069.2,0.01]
[1720510624146,5.271,3070.0,3069.2,0.01]
[1720510624147,2.4116,3069.3,3069.2,0.01]
[1720510624493,2.72361728,3069.3,3069.2,0.01]
[1720510624845,5.72361728,3069.3,3069.2,0.01]
[1720510625072,3.07085728,3069.3,3069.2,0.01]
[1720510625276,0.07085728,3069.3,3069.2,0.01]
[1720510625632,5.4897,3069.8,3069.2,0.01]
[1720510625839,0.0708401,3069.3,3069.2,0.07516299]
[1720510626036,2.3877,3070.4,3069.2,3.26817]
[1720510626463,0.06850924,3070.3,3069.7,3.25764]
[1720510626638,0.06850924,3070.3,3069.7,0.325764]
[1720510626868,7.70058685,3070.6,3069.9,3.25742]
[1720510627053,0.06390824,3070.2,3069.9,3.25742]
[1720510627250,7.36,3070.6,3069.9,3.25742]
[1720510627578,7.36,3070.6,3070.1,3.25719]
[1720510627878,7.36,3070.6,3069.1,3.2582]
[1720510627879,5.0562,3070.5,3069.1,3.2582]
[1720510628180,11.4902,3070.5,3068.7,3.2587]
[1720510628354,2.2847,3070.3,3068.7,3.2587]
[1720510628671,5.2847,3070.3,3068.7,3.2587]
[1720510628913,0.87187,3070.2,3068.6,3.25881]
[1720510629037,0.87187,3070.2,3068.3,3.25911]
[1720510629038,6.5571,3070.1,3068.3,3.25911]
[1720510629240,2.3467,3069.9,3068.3,3.25911]
[1720510629561,7.7397,3069.3,3066.8,7.43]
[1720510629767,8.86872026,3069.3,3067.3,3.26011]
[1720510629949,8.86872026,3069.3,3066.9,0.06518954]
[1720510629950,7.664,3068.9,3067.2,3.26029]
[1720510630151,1.959,3068.7,3067.2,3.26029]
[1720510630381,1.959,3068.7,3066.1,3.577895]
[1720510630382,5.393,3067.8,3066.1,1.306895]
[1720510630590,5.393,3067.8,3066.3,3.26124]
[1720510630739,5.509,3067.7,3066.3,3.26124]
[1720510631140,3.0,3068.1,3066.8,3.26063]
[1720510631377,2.18746,3068.3,3066.6,2.4221]
[1720510631535,2.18746,3068.3,3066.8,3.26066]
[1720510631536,0.55,3068.2,3066.8,3.26066]
[1720510631893,0.55,3068.2,3066.3,0.0652019]
[1720510632049,0.55,3068.2,3066.8,3.26071]
[1720510632251,0.55,3068.2,3066.5,3.26104]
[1720510632252,0.55,3068.2,3066.9,3.26057]
[1720510632455,0.55,3068.2,3067.0,3.26044]
[1720510632657,0.55,3068.2,3067.2,3.26029]
[1720510632854,2.2846,3068.4,3067.3,3.26018]
[1720510633063,2.271,3068.9,3067.6,3.26478]
[1720510633240,2.271,3068.4,3067.6,0.005]
[1720510633446,4.23,3068.4,3067.6,0.005]
[1720510633992,7.664,3068.4,3067.6,0.005]
[1720510634181,5.393,3068.2,3067.6,0.005]
[1720510634386,1.959,3068.0,3067.6,0.005]
[1720510634568,3.0,3068.0,3067.6,0.005]
[1720510634742,1.959,3067.8,3067.6,0.005]
[1720510634944,0.55,3067.7,3067.6,0.005]
[1720510635679,3.0,3067.7,3067.6,0.005]
[1720510635879,3.0,3067.8,3067.6,0.005]
[1720510636084,2.4116,3068.3,3067.6,0.005]
[1720510636291,4.01826,3068.2,3067.6,0.005]
[1720510636587,3.46826,3068.2,3067.6,0.005]
[1720510637384,7.22796,3068.2,3067.6,0.005]
[1720510637561,1.959,3068.1,3067.6,0.005]
[1720510637781,3.46826,3068.2,3067.6,0.005]
[1720510637988,0.963956,3068.1,3067.6,0.005]
[1720510638316,2.271,3067.9,3067.6,0.005]
[1720510638461,0.55,3067.8,3067.6,0.005]
[1720510638670,0.06070783,3067.8,3067.6,0.005]
[1720510639112,0.3257,3068.5,3067.6,0.005]
[1720510639268,0.3257,3068.3,3067.6,0.005]
[1720510639667,0.06067948,3068.2,3067.6,0.005]
[1720510640614,2.51127,3068.8,3067.8,3.25965]
[1720510640915,0.06074222,3068.7,3067.6,0.005]
[1720510641112,0.31186922,3068.7,3067.6,0.005]
[1720510641981,0.31186922,3068.7,3067.9,3.25947]
[1720510642495,3.31186922,3068.7,3067.9,3.25947]
[1720510643276,3.31186922,3068.7,3068.0,3.25941]
[1720510643630,3.31186922,3068.7,3068.1,3.25933]
[1720510643908,3.31186922,3068.7,3068.0,3.25945]
[1720510644601,0.06074222,3068.7,3068.1,2.40638043]
[1720510644794,0.06074222,3068.7,3068.6,3.25881]
[1720510645125,7.36,3069.2,3069.0,3.25838]
[1720510646015,3.7597,3070.4,3069.0,3.25838]
[1720510646016,7.36,3069.7,3069.0,3.25838]
[1720510646220,0.05921978,3069.6,3069.0,3.25838]
[1720510646525,0.05921978,3069.6,3069.2,3.25817]
[1720510646708,0.05921978,3069.6,3069.3,0.06515469]
[1720510647014,0.05921978,3069.6,3069.3,3.32321469]
[1720510647510,0.05921978,3069.6,3069.5,3.25785]
[1720510648014,7.36,3070.4,3069.0,5.93128362]
[1720510648185,0.05968333,3070.3,3069.7,3.25763]
[1720510649715,3.05968333,3070.3,3069.7,3.25763]
[1720510649930,3.42819583,3070.3,3069.0,2.67295362]
[1720510650091,3.42819583,3070.3,3069.0,3.25837]
[1720510650485,5.75629583,3070.3,3069.2,3.25815]
[1720510651100,7.71529583,3070.3,3068.8,3.25849]
[1720510651311,0.55,3070.2,3068.5,5.64935]
[1720510651520,4.35992958,3070.2,3068.9,3.25849]
[1720510651680,3.05781354,3070.1,3068.9,3.25849]
[1720510653224,3.63794025,3070.0,3068.6,3.25873]
[1720510653372,0.05768237,3069.9,3068.7,3.25863]
[1720510653573,0.05768237,3069.9,3069.0,3.25838]
[1720510653776,0.05768237,3069.9,3069.1,0.06516015]
[1720510654003,2.19152498,3070.2,3069.2,3.25814]
[1720510654212,0.05767361,3070.1,3069.0,3.25838]
[1720510654427,0.05767361,3070.1,3068.8,3.25859]
[1720510654428,0.22491986,3070.0,3068.8,3.25859]
[1720510654595,0.05766597,3069.9,3068.9,3.25843]
[1720510654937,5.393,3070.1,3068.3,3.2591]
[1720510655077,2.01663413,3069.8,3068.4,6.259]
[1720510655281,1.959,3069.8,3068.5,3.25891]
[1720510655591,0.60760789,3069.7,3068.5,3.25891]
[1720510655917,0.25666079,3069.6,3068.8,3.25858]
[1720510656118,0.05760789,3069.7,3068.8,3.25858]
[1720510656292,0.05759773,3069.5,3068.8,3.25858]
[1720510656487,0.05760155,3069.6,3068.8,3.25858]
[1720510656691,0.05759392,3069.4,3069.0,3.25837]
[1720510656901,0.05759773,3069.5,3069.0,3.25837]
[1720510657081,0.0575901,3069.3,3069.0,3.25837]
[1720510657286,0.05759392,3069.4,3069.0,3.25837]
[1720510657526,0.05758628,3069.2,3069.0,3.25837]
[1720510657876,0.05758246,3069.1,3068.9,3.25843]
[1720510658031,0.05758246,3069.1,3068.9,3.25846]
[1720510658332,2.3819,3069.2,3068.1,3.25924]
[1720510658493,0.05758684,3069.0,3068.0,3.25944]
[1720510658698,0.24394868,3069.0,3068.0,3.25944]
[1720510658916,0.05756535,3068.9,3068.0,3.25944]
[1720510659090,2.01656535,3068.9,3067.6,0.005]
[1720510659289,0.05756535,3068.9,3067.6,0.005]
[1720510659487,0.38771675,3068.9,3067.6,0.25524887]
[1720510660115,0.38771675,3068.9,3067.7,3.25974]
[1720510660289,0.38771675,3068.9,3067.8,3.25958]
[1720510660623,0.38771675,3068.9,3068.0,3.25943]
[1720510661013,0.55,3068.8,3067.6,3.51507887]
[1720510661184,0.05728338,3068.7,3067.6,3.51507887]
[1720510661718,0.05728338,3068.7,3067.7,3.25974]
[1720510662425,0.05728338,3068.7,3067.6,0.005]
[1720510663023,0.36072834,3068.6,3067.6,0.005]
[1720510663225,0.05723686,3068.5,3067.6,0.005]
[1720510664914,2.9176,3068.4,3067.6,0.005]
[1720510665308,0.05718486,3068.3,3067.6,0.005]
[1720510665636,0.05718486,3068.3,3067.8,3.25966]
[1720510665933,3.0,3068.7,3068.0,3.25938]
[1720510666241,3.0,3068.8,3068.0,3.25938]
[1720510666404,2.4443,3069.1,3068.0,3.25938]
[1720510666405,0.05693768,3068.7,3068.0,3.25938]
[1720510666593,3.0,3069.0,3068.0,3.25938]
[1720510666793,0.41440199,3068.8,3068.0,3.25938]
[1720510667737,0.41440199,3068.8,3068.1,3.25934]
[1720510667964,0.05699198,3068.8,3068.4,3.25894]
[1720510668241,2.2747,3069.6,3068.6,3.25881]
[1720510668404,1.41356921,3069.5,3068.7,3.25868]
[1720510668604,0.28458593,3069.5,3068.8,3.25857]
[1720510668807,0.28458593,3069.5,3068.9,3.25848]
[1720510669002,0.05711593,3069.5,3068.9,3.25848]
[1720510669314,3.434,3069.8,3068.2,3.25923]
[1720510669648,2.2751,3069.3,3068.2,3.25923]
[1720510669943,2.2751,3069.3,3068.0,3.25941]
[1720510669944,1.18628759,3069.2,3068.0,3.25941]
[1720510670140,1.18628759,3069.2,3068.1,3.25933]
[1720510670311,1.12915899,3069.1,3068.1,3.25933]
[1720510670635,1.18645538,3069.0,3068.3,3.25912]
[1720510670796,0.05729639,3069.0,3068.7,3.2587]
[1720510671002,2.62481499,3069.9,3068.8,0.06516393]
[1720510671245,1.4487689,3069.8,3068.9,3.25849]
[1720510671541,1.12896354,3069.7,3069.0,3.32354084]
[1720510671736,1.12896354,3069.6,3069.3,3.25804]
[1720510672036,0.05731622,3069.6,3069.4,3.2579]
[1720510672246,7.36,3070.0,3069.4,3.2579]
[1720510672434,0.05544552,3069.9,3069.4,3.2579]
[1720510673025,1.12890456,3069.8,3069.4,3.2579]
[1720510673364,0.05543917,3069.7,3069.4,3.2579]
[1720510673721,7.36,3070.0,3069.4,3.2579]
[1720510673922,0.05543331,3069.6,3069.5,0.06515062]
[1720510674194,7.36,3070.0,3069.5,3.25785]
[1720510674333,0.05583182,3069.6,3069.5,3.25785]
[1720510674539,7.36,3070.0,3069.5,3.25785]
[1720510674738,8.096,3070.0,3069.5,3.25785]
[1720510674952,0.34061629,3069.6,3069.5,3.25785]
[1720510675339,0.39645063,3069.6,3069.3,3.25799]
[1720510676037,0.39645063,3069.6,3069.1,3.25825]
[1720510676227,0.34061629,3069.6,3068.9,3.25842]
[1720510676971,0.34061629,3069.6,3069.1,3.25821]
[1720510677138,0.34061629,3069.6,3069.3,3.25806]
[1720510677340,7.36,3070.0,3069.7,3.25756]
[1720510677857,0.05580042,3069.9,3069.8,9.77262]
[1720510678062,7.36,3071.1,3070.5,3.25679]
[1720510678240,1.18421131,3071.0,3070.3,3.25694]
[1720510678424,0.05584242,3071.0,3070.4,3.25689]
[1720510679159,0.05584242,3071.0,3070.2,3.25711]
[1720510679533,0.05584242,3071.0,3070.2,3.25708]
[1720510679730,0.05584242,3071.0,3070.4,3.2568]
[1720510679945,0.05584242,3071.0,3070.3,3.25698]
[1720510680174,7.36,3071.4,3070.2,3.25711]
[1720510680343,2.37233551,3070.9,3069.8,3.2575]
[1720510680546,2.65674995,3070.9,3069.8,3.2575]
[1720510680780,0.05613925,3070.8,3070.0,3.25732]
[1720510680932,0.66237655,3070.8,3070.0,3.25732]
[1720510681135,0.66237655,3070.8,3069.9,3.25743]
[1720510681440,1.12853451,3070.7,3069.8,3.25753]
[1720510681647,0.05608878,3070.6,3069.8,3.25753]
[1720510682881,0.05608878,3070.6,3069.6,3.25774]
[1720510683166,0.05608878,3070.6,3069.7,3.25764]
[1720510683588,0.45210715,3070.6,3069.7,3.25764]
[1720510684136,0.45210715,3070.6,3069.6,3.25768]
[1720510684469,0.45210715,3070.6,3069.5,3.25785]
[1720510684771,0.45210715,3070.6,3069.7,3.25755]
[1720510685445,0.45210715,3070.6,3069.8,3.25751]
[1720510685953,0.45210715,3070.6,3069.6,3.25768]
[1720510686142,0.45210715,3070.6,3069.7,3.25764]
[1720510687765,0.45210715,3070.6,3070.0,3.25724]
[1720510687990,0.45210715,3070.6,3069.7,3.25756]
[1720510688569,0.45210715,3070.6,3069.2,3.2581]
[1720510688882,1.42203212,3070.5,3069.5,3.25785]
[1720510689107,0.05399021,3070.4,3069.5,3.25785]
[1720510689402,0.05399021,3070.4,3069.7,3.25756]
[1720510689554,0.34061206,3070.5,3069.8,3.3226713]
[1720510689758,0.05398639,3070.3,3069.8,3.3226713]
[1720510690091,0.05397438,3070.2,3069.8,3.3226713]
[1720510690294,0.05397438,3070.2,3069.9,3.25743]
[1720510690457,0.34061206,3070.5,3069.9,3.25743]
[1720510690656,0.05398202,3070.4,3069.9,3.25743]
[1720510691670,0.05398202,3070.4,3069.7,3.25757]
[1720510692260,0.05398202,3070.4,3069.5,3.25781]
[1720510692457,0.05398202,3070.4,3069.4,3.25793]
[1720510692693,0.05398202,3070.4,3069.4,3.25787]
[1720510693296,0.82944143,3070.4,3069.4,3.25787]
[1720510694807,0.82944143,3070.4,3069.6,3.25775]
[1720510695003,0.82944143,3070.4,3069.7,3.25764]
[1720510696105,0.82944143,3070.4,3069.8,0.06514634]
[1720510696314,0.82944143,3070.4,3069.9,3.2574]
[1720510697491,0.05398202,3070.4,3070.1,3.25716]
[1720510700486,1.12846618,3070.3,3070.1,3.25716]
[1720510700705,1.18063579,3070.2,3070.1,3.25716]
[1720510702088,1.18063579,3070.2,3069.2,3.88394]
[1720510702276,0.05216961,3070.2,3069.9,3.25743]
[1720510702475,1.1285588,3070.1,3069.9,3.25743]
[1720510702711,0.05213425,3070.0,3069.9,3.25743]
[1720510703478,1.1285606,3070.0,3069.9,3.25743]
[1720510703679,1.18069485,3070.0,3069.9,3.25743]
[1720510704618,1.52128544,3070.0,3069.9,3.25743]
[1720510704979,1.52128544,3070.0,3069.7,3.25764]
[1720510705180,0.39272484,3070.0,3069.8,3.25753]
[1720510705379,1.12856207,3069.9,3069.8,3.25753]
[1720510705576,0.39272484,3070.0,3069.8,3.25753]
[1720510705819,1.18069179,3069.9,3069.8,3.25753]
[1720510705999,1.12856139,3069.9,3069.8,3.25753]
[1720510706187,1.18069179,3069.9,3069.8,3.25753]
[1720510706392,1.18069179,3069.9,3069.5,3.25776]
[1720510706590,1.12856139,3069.8,3069.5,3.25776]
[1720510707075,1.12856139,3069.8,3069.5,6.51552]
[1720510707280,1.12856139,3069.7,3069.3,3.25799]
[1720510707479,1.12856139,3069.9,3069.3,3.25799]
[1720510707681,0.34059059,3070.0,3069.4,3.25794]
[1720510707682,1.17890063,3069.8,3069.4,3.25794]
[1720510707994,1.12856139,3069.7,3069.6,3.25775]
[1720510708480,1.12856139,3069.9,3069.7,3.25759]
[1720510708680,0.05029894,3069.8,3069.7,3.25759]
[1720510708990,1.12864175,3069.8,3069.7,3.25759]
[1720510710400,1.12864175,3069.8,3069.3,3.25802]
[1720510710595,1.12864175,3069.7,3069.3,3.25802]
[1720510710791,0.34059059,3070.0,3069.3,3.25802]
[1720510710792,1.12864175,3069.9,3069.3,3.25802]
[1720510711040,0.34059059,3070.0,3068.9,3.25848]
[1720510711041,1.12864175,3069.8,3068.9,3.25848]
[1720510711248,2.43123209,3069.8,3068.9,3.25848]
[1720510711537,2.90686744,3069.7,3069.1,3.25826]
[1720510711703,1.12864175,3069.6,3069.1,3.25826]
[1720510711905,0.04987082,3069.5,3069.1,3.25826]
[1720510712103,1.12879464,3069.4,3069.1,3.25826]
[1720510712340,1.12879464,3069.3,3069.1,3.25826]
[1720510712633,0.04985814,3069.3,3069.0,3.25838]
[1720510712944,1.34885498,3069.7,3069.0,3.25838]
[1720510712945,3.73015498,3069.8,3069.0,3.25838]
[1720510713237,1.17866615,3069.2,3069.0,3.25838]
[1720510713411,1.1288673,3069.2,3068.7,3.25863]
[1720510713733,0.04979503,3069.1,3068.9,3.25848]
[1720510714437,0.04979503,3069.1,3068.8,0.651736]
[1720510714438,8.70835689,3069.7,3069.0,3.25831]
[1720510714638,2.5512085,3069.6,3069.0,3.25831]
[1720510714798,2.5512085,3069.5,3069.0,3.25831]
[1720510714995,2.5512085,3069.4,3069.0,3.25831]
[1720510715208,2.5512085,3069.3,3069.0,3.25831]
[1720510715510,9.98586719,3069.7,3069.0,3.25831]
[1720510715708,2.55119728,3069.6,3069.1,3.25828]
[1720510715935,2.55119728,3069.5,3069.1,3.25828]
[1720510716131,9.98586719,3069.7,3069.1,3.25828]
[1720510716334,1.12883343,3069.4,3069.1,3.25828]
[1720510716497,2.55116356,3069.3,3069.1,3.25828]
[1720510716701,1.34930519,3069.6,3069.1,3.25828]
[1720510716702,1.42233013,3069.2,3069.1,3.25828]
[1720510717037,1.42233013,3069.5,3069.1,3.25828]
[1720510717242,1.12883701,3069.4,3069.1,3.25828]
[1720510717445,2.55116714,3069.3,3069.1,3.25828]
[1720510717729,1.42233013,3069.2,3069.1,3.25828]
[1720510718132,1.42233013,3069.5,3069.1,3.25828]
[1720510718320,1.12884002,3069.4,3069.1,3.25828]
[1720510718524,1.42233013,3069.3,3069.2,3.25817]
[1720510718854,1.42230731,3069.5,3069.3,3.25801]
[1720510719001,2.5510975,3069.4,3069.3,3.25801]
[1720510719415,8.70930519,3069.7,3069.3,3.25801]
[1720510719639,2.55106536,3069.6,3069.3,3.25801]
[1720510719837,0.34062437,3069.4,3069.3,3.909639]
[1720510720145,0.34062437,3069.4,3069.3,6.51608]
[1720510720304,0.34062437,3069.4,3069.3,6.58122836]
[1720510720503,0.34062437,3069.4,3069.3,6.51608]
[1720510722611,0.34062437,3069.4,3069.3,3.25801]
[1720510722825,0.34062437,3069.4,3068.9,3.2584]
[1720510722826,1.7627979,3069.4,3068.9,3.2584]
[1720510723117,1.42217353,3069.3,3069.2,3.25817]
[1720510723336,0.34062437,3069.4,3069.3,3.25807]
[1720510723547,1.76284503,3069.4,3069.3,7.167764]
[1720510723716,0.34062437,3069.4,3069.3,7.167764]
[1720510727622,0.34062437,3069.4,3069.3,10.425834]
[1720510727948,0.34062437,3069.4,3069.3,12.709434]
[1720510728149,0.34062437,3069.4,3069.3,15.709434]
[1720510729038,0.34062437,3069.4,3069.3,12.709434]
[1720510730255,0.34062437,3069.4,3069.3,15.709434]
[1720510732328,0.34062437,3069.4,3069.3,18.967504]
[1720510733117,1.35228612,3070.6,3070.5,3.25679]
[1720510733268,1.35228612,3070.8,3070.6,3.25669]
[1720510733430,2.59678815,3070.7,3070.6,3.25669]
[1720510733868,1.46844884,3070.7,3070.6,3.25669]
[1720510735327,0.04679587,3070.7,3070.6,3.25669]
[1720510735763,21.20228612,3071.1,3070.7,3.25648]
[1720510735964,2.549769,3071.0,3070.7,3.25648]
[1720510736176,1.42155263,3070.9,3070.7,3.25648]
[1720510736466,1.42155263,3070.8,3070.7,3.25648]
[1720510736996,1.42155263,3070.8,3070.7,7.164377]
[1720510737287,7.36,3071.5,3071.4,3.25584]
[1720510737442,3.7580814,3071.9,3071.5,3.25573]
[1720510737789,1.4212329,3071.8,3071.5,3.25573]
[1720510738143,1.42116738,3071.7,3071.6,3.25563]
[1720510738344,7.36,3072.0,3071.5,3.25573]
[1720510738555,1.4211642,3071.9,3071.5,3.25573]
[1720510738854,1.4211642,3071.9,3071.7,3.25545]
[1720510739190,1.4211642,3071.9,3071.1,3.2561]
[1720510739191,7.36,3072.0,3071.8,3.25536]
[1720510740787,7.36,3072.0,3071.6,3.2556]
[1720510740992,0.736,3071.9,3071.6,3.2556]
[1720510741662,0.736,3071.9,3071.7,3.25551]
[1720510741997,7.36,3072.0,3071.7,3.25551]
[1720510742289,7.36,3072.0,3071.0,3.25616]
[1720510742290,7.36,3072.0,3071.9,3.25531]
[1720510742445,10.36,3072.5,3072.0,3.25514]
[1720510742650,1.42104055,3072.4,3072.0,3.25514]
[1720510742849,0.83956086,3072.5,3072.0,3.25514]
[1720510743082,3.0,3072.6,3072.0,3.25514]
[1720510743282,0.04276899,3072.5,3072.0,3.25514]
[1720510744089,5.3603,3072.7,3072.0,3.25514]
[1720510744389,0.0430301,3072.6,3072.0,3.25514]
[1720510745084,0.0430301,3072.6,3072.2,3.25499]
[1720510745648,0.0430301,3072.6,3072.2,6.50988]
[1720510745848,0.0430301,3072.6,3072.3,3.25486]
[1720510746085,7.36,3072.8,3072.5,3.25467]
[1720510746284,0.04157648,3072.7,3072.6,3.25456]
[1720510746462,7.36,3072.8,3072.6,3.25456]
[1720510746659,0.38205254,3072.7,3072.6,3.25456]
[1720510747745,0.38205254,3072.7,3072.4,3.25471]
[1720510748519,1.15625779,3072.7,3071.9,3.25528]
[1720510748719,2.4364,3072.6,3071.7,3.25547]
[1720510748927,0.04161192,3072.5,3071.7,3.25545]
[1720510749094,1.2222337,3072.5,3071.8,3.25535]
[1720510749302,4.2222337,3072.5,3071.8,3.25535]
[1720510749794,4.2222337,3072.5,3071.8,3.2554]
[1720510749996,0.90798991,3072.4,3071.8,3.2554]
[1720510750208,3.04161192,3072.5,3072.1,3.25501]
[1720510750397,1.11468131,3072.7,3072.1,3.25501]
[1720510750398,0.04159924,3072.3,3072.2,3.25499]
[1720510750601,0.84746813,3072.6,3072.2,3.25499]
[1720510750793,0.040162,3072.3,3072.2,3.25499]
[1720510750995,0.84746813,3072.6,3072.2,3.25499]
[1720510751197,0.040162,3072.3,3072.2,3.25499]
[1720510751401,3.34047606,3072.7,3072.2,3.25499]
[1720510751603,0.040162,3072.3,3072.2,3.25499]
[1720510752117,3.34047606,3072.7,3072.5,3.2546]
[1720510752327,0.04019881,3072.6,3072.5,3.2546]
[1720510753284,0.04019881,3072.6,3071.8,3.25538]
[1720510753506,0.04019881,3072.6,3072.2,3.25493]
[1720510753719,0.04019881,3072.6,3072.5,3.25467]
[1720510753918,0.04019881,3072.6,3072.1,3.25502]
[1720510754217,0.04019881,3072.6,3072.3,3.25487]
[1720510754433,0.04019881,3072.6,3072.1,3.25502]
[1720510754624,2.74306749,3072.5,3072.1,3.25502]
[1720510754792,0.04019881,3072.6,3072.3,3.25488]
[1720510754993,3.34047606,3072.7,3072.3,3.25488]
[1720510754994,0.04019119,3072.4,3072.3,3.25488]
[1720510755184,3.34047606,3072.7,3072.3,6.50968]
[1720510755388,0.04019119,3072.4,3072.3,3.2548]
[1720510755735,0.34047606,3072.7,3072.6,3.25457]
[1720510755942,0.38081066,3072.7,3072.6,3.25457]
[1720510759946,0.38081066,3072.7,3071.8,3.25533]
[1720510760149,5.33981066,3072.7,3071.9,3.25522]
[1720510760357,1.12778962,3072.6,3072.2,3.25489]
[1720510760646,1.12778962,3072.6,3072.3,3.25486]
[1720510760647,1.42927003,3072.6,3072.3,3.25486]
[1720510760948,0.04044622,3072.5,3072.3,3.25486]
[1720510761856,0.04044622,3072.5,3072.2,3.25489]
[1720510761857,0.04044622,3072.5,3072.4,6.50956]
[1720510762043,7.36,3072.8,3072.7,3.25446]
[1720510762216,3.0,3073.1,3072.8,3.25435]
[1720510762412,3.0,3073.0,3072.8,3.25435]